[Event "Championnat d'Europe de Blitz"]
[Date "2024.12.09"]
[White "Fridman, Daniel"]
[Black "Bulmaga, Irina"]
[WhiteElo "2571"]
[BlackElo "2386"]
[Round "6.30"]
[Result "1/2-1/2"]
[TimeControl "180+2"]

1. d4 {[%clk 00:03:03]} Nf6 {[%emt 00:00:01] [%clk 00:03:03]} 2. Nf3 {[%emt
00:00:01] [%clk 00:03:03]} e6 {[%emt 00:00:01] [%clk 00:03:04]} 3. c4 {[%emt
00:00:03] [%clk 00:03:03]} d5 {[%clk 00:03:05]} 4. g3 {[%emt 00:00:06] [%clk
00:02:58]} Be7 {[%emt 00:00:01] [%clk 00:03:06]} 5. Bg2 {[%emt 00:00:02] [%clk
00:02:58]} O-O {[%emt 00:00:02] [%clk 00:03:06]} 6. Nc3 {[%clk 00:02:58]} dxc4
{[%emt 00:00:03] [%clk 00:03:05]} 7. Ne5 {[%clk 00:02:59]} c5 {[%emt 00:00:15]
[%clk 00:02:53]} 8. dxc5 {[%emt 00:00:03] [%clk 00:02:58]} Qxd1+ {[%emt
00:00:07] [%clk 00:02:47]} 9. Nxd1 {[%emt 00:00:02] [%clk 00:02:58]} Bxc5 {[%emt
00:00:06] [%clk 00:02:43]} 10. Nxc4 {[%emt 00:00:01] [%clk 00:02:59]} Nc6 {[%emt
00:00:12] [%clk 00:02:34]} 11. Nc3 {[%emt 00:00:01] [%clk 00:02:59]} Bd7 {[%emt
00:00:06] [%clk 00:02:31]} 12. O-O {[%emt 00:00:06] [%clk 00:02:55]} Rac8 {[%emt
00:00:07] [%clk 00:02:27]} 13. Bf4 {[%emt 00:00:03] [%clk 00:02:54]} Rfd8 {[%emt
00:00:16] [%clk 00:02:13]} 14. Bd6 {[%emt 00:00:28] [%clk 00:02:27]} Bxd6 {[%emt
00:00:11] [%clk 00:02:04]} 15. Nxd6 {[%emt 00:00:02] [%clk 00:02:27]} Rb8 {[%clk
00:02:06]} 16. Rfd1 {[%emt 00:00:06] [%clk 00:02:24]} b6 {[%emt 00:00:05] [%clk
00:02:03]} 17. Ncb5 {[%emt 00:00:16] [%clk 00:02:11]} Ne8 {[%emt 00:00:44] [%clk
00:01:19]} 18. Nb7 {[%emt 00:00:04] [%clk 00:02:09]} Rxb7 {[%emt 00:00:10] [%clk
00:01:11]} 19. Bxc6 {[%emt 00:00:04] [%clk 00:02:08]} Bxc6 {[%clk 00:01:12]} 20.
Rxd8 {[%emt 00:00:02] [%clk 00:02:08]} Bxb5 {[%emt 00:00:01] [%clk 00:01:13]}
21. a4 {[%emt 00:00:08] [%clk 00:02:02]} Bc6 {[%emt 00:00:02] [%clk 00:01:13]}
22. b3 {[%emt 00:00:05] [%clk 00:01:59]} Kf8 {[%emt 00:00:04] [%clk 00:01:11]}
23. Rc1 {[%emt 00:00:02] [%clk 00:01:59]} Bd7 {[%emt 00:00:31] [%clk 00:00:42]}
24. Ra8 {[%emt 00:00:12] [%clk 00:01:49]} Ke7 {[%emt 00:00:02] [%clk 00:00:43]}
25. h4 {[%emt 00:00:14] [%clk 00:01:37]} h5 {[%emt 00:00:02] [%clk 00:00:43]}
26. e4 {[%emt 00:00:16] [%clk 00:01:22]} e5 {[%emt 00:00:03] [%clk 00:00:42]}
27. f4 {[%emt 00:00:12] [%clk 00:01:12]} exf4 {[%emt 00:00:01] [%clk 00:00:43]}
28. gxf4 {[%clk 00:01:13]} g6 {[%emt 00:00:03] [%clk 00:00:42]} 29. Kf2 {[%emt
00:00:04] [%clk 00:01:11]} Nc7 {[%emt 00:00:09] [%clk 00:00:36]} 30. Rh8 {[%emt
00:00:04] [%clk 00:01:09]} Ne6 {[%emt 00:00:12] [%clk 00:00:26]} 31. Ke3 {[%emt
00:00:04] [%clk 00:01:06]} a5 {[%emt 00:00:02] [%clk 00:00:27]} 32. f5 {[%emt
00:00:06] [%clk 00:01:02]} gxf5 {[%emt 00:00:01] [%clk 00:00:27]} 33. exf5
{[%emt 00:00:02] [%clk 00:01:02]} Ng7 {[%emt 00:00:02] [%clk 00:00:28]} 34. Kf4
{[%emt 00:00:04] [%clk 00:01:00]} Bxf5 {[%emt 00:00:03] [%clk 00:00:26]} 35. Rg8
{[%emt 00:00:10] [%clk 00:00:53]} Kf6 {[%emt 00:00:08] [%clk 00:00:20]} 36. Rxg7
{[%clk 00:00:54]} Kxg7 {[%emt 00:00:02] [%clk 00:00:21]} 37. Kxf5 {[%clk
00:00:55]} b5 {[%emt 00:00:10] [%clk 00:00:13]} 38. Rc5 {[%emt 00:00:06] [%clk
00:00:51]} bxa4 {[%emt 00:00:01] [%clk 00:00:14]} 39. bxa4 {[%clk 00:00:52]} Rb4
{[%emt 00:00:01] [%clk 00:00:15]} 40. Rxa5 {[%emt 00:00:01] [%clk 00:00:53]}
Rxh4 {[%clk 00:00:16]} 41. Kg5 {[%emt 00:00:02] [%clk 00:00:53]} Rh1 {[%emt
00:00:01] [%clk 00:00:17]} 42. Ra7 {[%emt 00:00:02] [%clk 00:00:54]} h4 {[%clk
00:00:17]} 43. Kg4 {[%emt 00:00:01] [%clk 00:00:55]} Kg6 {[%emt 00:00:02] [%clk
00:00:18]} 44. Ra6+ {[%emt 00:00:02] [%clk 00:00:54]} f6 {[%clk 00:00:19]} 45.
a5 {[%emt 00:00:02] [%clk 00:00:55]} h3 {[%clk 00:00:20]} 46. Rb6 {[%emt
00:00:09] [%clk 00:00:47]} h2 {[%emt 00:00:03] [%clk 00:00:20]} 47. Kh3 {[%emt
00:00:01] [%clk 00:00:48]} Ra1 {[%emt 00:00:02] [%clk 00:00:20]} 48. Kxh2 {[%emt
00:00:02] [%clk 00:00:48]} Rxa5 {[%emt 00:00:02] [%clk 00:00:16]} 1/2-1/2

[Site "Europe Echecs"]

[Event "Championnat d'Europe de Blitz"]
[Date "2024.12.09"]
[White "Narva, Mai"]
[Black "Mastrovasilis, Dimitrios"]
[WhiteElo "2413"]
[BlackElo "2537"]
[Round "6.31"]
[Result "1-0"]
[TimeControl "180+2"]

1. e4 {[%emt 00:00:02] [%clk 00:03:02]} d5 {[%emt 00:00:02] [%clk 00:03:02]} 2.
exd5 {[%emt 00:00:02] [%clk 00:03:02]} Qxd5 {[%emt 00:00:02] [%clk 00:03:02]} 3.
Nc3 {[%emt 00:00:02] [%clk 00:03:02]} Qd6 {[%emt 00:00:02] [%clk 00:03:02]} 4.
d4 {[%emt 00:00:02] [%clk 00:03:02]} Nf6 {[%emt 00:00:01] [%clk 00:03:02]} 5.
Nf3 {[%emt 00:00:03] [%clk 00:03:02]} g6 {[%emt 00:00:02] [%clk 00:03:02]} 6. g3
{[%emt 00:00:11] [%clk 00:02:53]} Bg7 {[%emt 00:00:05] [%clk 00:02:59]} 7. Bg2
{[%emt 00:00:02] [%clk 00:02:53]} O-O {[%emt 00:00:03] [%clk 00:02:58]} 8. O-O
{[%emt 00:00:02] [%clk 00:02:53]} c6 {[%emt 00:00:29] [%clk 00:02:32]} 9. Re1
{[%emt 00:00:05] [%clk 00:02:50]} Bg4 {[%emt 00:00:10] [%clk 00:02:23]} 10. Bf4
{[%emt 00:00:32] [%clk 00:02:20]} Qd8 {[%emt 00:00:03] [%clk 00:02:23]} 11. h3
{[%emt 00:00:05] [%clk 00:02:16]} Bxf3 {[%emt 00:00:02] [%clk 00:02:22]} 12.
Qxf3 {[%emt 00:00:14] [%clk 00:02:05]} e6 {[%emt 00:00:04] [%clk 00:02:20]} 13.
Rad1 {[%emt 00:00:12] [%clk 00:01:55]} Nbd7 {[%emt 00:00:05] [%clk 00:02:18]}
14. Ne2 {[%emt 00:00:39] [%clk 00:01:18]} a5 {[%emt 00:00:30] [%clk 00:01:50]}
15. a4 {[%emt 00:00:21] [%clk 00:00:58]} Qb6 {[%emt 00:00:50] [%clk 00:01:03]}
16. b3 {[%emt 00:00:12] [%clk 00:00:48]} Rfe8 {[%emt 00:00:02] [%clk 00:01:02]}
17. c4 {[%emt 00:00:16] [%clk 00:00:35]} e5 {[%emt 00:00:06] [%clk 00:00:58]}
18. c5 {[%emt 00:00:18] [%clk 00:00:19]} Qa7 {[%emt 00:00:21] [%clk 00:00:39]}
19. dxe5 {[%emt 00:00:03] [%clk 00:00:18]} Nxe5 {[%emt 00:00:02] [%clk
00:00:39]} 20. Qc3 {[%emt 00:00:02] [%clk 00:00:18]} Nd5 {[%emt 00:00:08] [%clk
00:00:33]} 21. Bxd5 {[%emt 00:00:05] [%clk 00:00:15]} cxd5 {[%emt 00:00:01]
[%clk 00:00:34]} 22. Rxd5 {[%emt 00:00:05] [%clk 00:00:12]} Nc6 {[%emt 00:00:04]
[%clk 00:00:32]} 23. Qc4 {[%emt 00:00:03] [%clk 00:00:11]} Nb4 {[%emt 00:00:10]
[%clk 00:00:24]} 24. Rdd1 {[%emt 00:00:01] [%clk 00:00:12]} Rac8 {[%emt
00:00:02] [%clk 00:00:24]} 25. Bd6 {[%emt 00:00:02] [%clk 00:00:12]} b6 {[%emt
00:00:03] [%clk 00:00:23]} 26. cxb6 {[%emt 00:00:03] [%clk 00:00:11]} Qxb6
{[%emt 00:00:02] [%clk 00:00:23]} 27. Qb5 {[%emt 00:00:03] [%clk 00:00:09]} Qxb5
{[%emt 00:00:07] [%clk 00:00:19]} 28. axb5 {[%clk 00:00:10]} Nc2 {[%emt
00:00:01] [%clk 00:00:20]} 29. b6 {[%emt 00:00:08] [%clk 00:00:04]} Nxe1 {[%emt
00:00:01] [%clk 00:00:20]} 30. Rxe1 {[%emt 00:00:03] [%clk 00:00:04]} Rc6 {[%emt
00:00:02] [%clk 00:00:20]} 31. Bc7 {[%emt 00:00:03] [%clk 00:00:03]} Bc3 {[%emt
00:00:11] [%clk 00:00:11]} 32. Rc1 {[%emt 00:00:01] [%clk 00:00:05]} Rxe2 {[%emt
00:00:08] [%clk 00:00:04]} 33. b7 {[%clk 00:00:06]} Kg7 {[%emt 00:00:02] [%clk
00:00:05]} 34. b8=Q {[%emt 00:00:02] [%clk 00:00:06]} Rf6 {[%emt 00:00:04] [%clk
00:00:03]} 35. Rxc3 {[%emt 00:00:02] [%clk 00:00:06]} Rfxf2 {[%clk 00:00:04]}
36. Be5+ {[%emt 00:00:02] [%clk 00:00:07]} Kh6 {[%clk 00:00:06]} 37. Bf4+ {[%emt
00:00:02] [%clk 00:00:07]} Kh5 {[%emt 00:00:01] [%clk 00:00:06]} 38. Rc5+ {[%emt
00:00:02] [%clk 00:00:08]} f5 {[%clk 00:00:08]} 39. g4+ {[%emt 00:00:05] [%clk
00:00:05]} Kh4 {[%clk 00:00:08]} 40. Bg3+ {[%emt 00:00:01] [%clk 00:00:06]} Kxh3
{[%emt 00:00:03] [%clk 00:00:07]} 41. Bxf2 {[%clk 00:00:07]} Rxf2 {[%emt
00:00:02] [%clk 00:00:08]} 42. Kxf2 {[%clk 00:00:08]} 1-0

[Site "Europe Echecs"]

[Event "Championnat d'Europe de Blitz"]
[Date "2024.12.09"]
[White "Stanojoski, Zvonko"]
[Black "Kozul, Zdenko"]
[WhiteElo "2401"]
[BlackElo "2519"]
[Round "6.32"]
[Result "1-0"]
[TimeControl "180+2"]

1. e4 {[%emt 00:00:03] [%clk 00:03:00]} c5 {[%emt 00:00:01] [%clk 00:03:03]} 2.
Nf3 {[%emt 00:00:02] [%clk 00:03:00]} d6 {[%emt 00:00:01] [%clk 00:03:04]} 3. d4
{[%emt 00:00:01] [%clk 00:03:01]} cxd4 {[%emt 00:00:01] [%clk 00:03:05]} 4. Nxd4
{[%emt 00:00:01] [%clk 00:03:01]} Nf6 {[%emt 00:00:01] [%clk 00:03:06]} 5. Nc3
{[%emt 00:00:02] [%clk 00:03:02]} Nc6 {[%clk 00:03:07]} 6. Bg5 {[%emt 00:00:06]
[%clk 00:02:57]} e6 {[%emt 00:00:01] [%clk 00:03:08]} 7. Qd2 {[%clk 00:02:58]}
a6 {[%emt 00:00:02] [%clk 00:03:09]} 8. O-O-O {[%emt 00:00:02] [%clk 00:02:58]}
Bd7 {[%clk 00:03:10]} 9. f4 {[%emt 00:00:08] [%clk 00:02:53]} b5 {[%emt
00:00:02] [%clk 00:03:10]} 10. Bxf6 {[%emt 00:00:18] [%clk 00:02:37]} gxf6
{[%emt 00:00:02] [%clk 00:03:11]} 11. Nxc6 {[%emt 00:00:03] [%clk 00:02:36]}
Bxc6 {[%emt 00:00:01] [%clk 00:03:12]} 12. Bd3 {[%emt 00:00:01] [%clk 00:02:37]}
Qb6 {[%emt 00:00:20] [%clk 00:02:53]} 13. Qe1 {[%emt 00:00:04] [%clk 00:02:34]}
O-O-O {[%emt 00:00:08] [%clk 00:02:48]} 14. Kb1 {[%emt 00:00:24] [%clk
00:02:12]} b4 {[%emt 00:00:08] [%clk 00:02:41]} 15. Ne2 {[%emt 00:00:02] [%clk
00:02:13]} d5 {[%emt 00:00:03] [%clk 00:02:41]} 16. Ng3 {[%emt 00:00:17] [%clk
00:01:57]} dxe4 {[%emt 00:01:23] [%clk 00:01:20]} 17. Bxe4 {[%emt 00:00:16]
[%clk 00:01:42]} Rxd1+ {[%emt 00:00:21] [%clk 00:01:01]} 18. Qxd1 {[%emt
00:00:01] [%clk 00:01:43]} f5 {[%emt 00:00:02] [%clk 00:01:01]} 19. Bf3 {[%emt
00:00:19] [%clk 00:01:26]} Bg7 {[%emt 00:00:06] [%clk 00:00:58]} 20. Nh5 {[%emt
00:00:07] [%clk 00:01:20]} Rd8 {[%emt 00:00:02] [%clk 00:00:58]} 21. Qe2 {[%emt
00:00:27] [%clk 00:00:55]} Bb5 {[%emt 00:00:02] [%clk 00:00:58]} 22. Qe1 {[%emt
00:00:12] [%clk 00:00:45]} Bf8 {[%emt 00:00:04] [%clk 00:00:56]} 23. Qe5 {[%emt
00:00:20] [%clk 00:00:27]} Qd4 {[%emt 00:00:12] [%clk 00:00:46]} 24. Qxd4 {[%emt
00:00:09] [%clk 00:00:19]} Rxd4 {[%clk 00:00:47]} 25. Rd1 {[%emt 00:00:06] [%clk
00:00:16]} Rxd1+ {[%emt 00:00:09] [%clk 00:00:40]} 26. Bxd1 {[%clk 00:00:17]} a5
{[%emt 00:00:05] [%clk 00:00:37]} 27. Bf3 {[%emt 00:00:02] [%clk 00:00:17]} Kc7
{[%emt 00:00:02] [%clk 00:00:37]} 28. b3 {[%emt 00:00:05] [%clk 00:00:14]} Bc5
{[%emt 00:00:04] [%clk 00:00:36]} 29. Nf6 {[%emt 00:00:06] [%clk 00:00:09]} h6
{[%emt 00:00:05] [%clk 00:00:33]} 30. Ng8 {[%emt 00:00:02] [%clk 00:00:10]} Bf8
{[%emt 00:00:02] [%clk 00:00:33]} 31. Nf6 {[%emt 00:00:03] [%clk 00:00:08]} Kd8
{[%emt 00:00:03] [%clk 00:00:32]} 32. Kc1 {[%emt 00:00:01] [%clk 00:00:10]} Bg7
{[%emt 00:00:03] [%clk 00:00:31]} 33. Nh5 {[%emt 00:00:01] [%clk 00:00:10]} Bc3
{[%emt 00:00:02] [%clk 00:00:31]} 34. Ng3 {[%emt 00:00:02] [%clk 00:00:10]} Bd4
{[%emt 00:00:14] [%clk 00:00:19]} 35. Kd2 {[%clk 00:00:11]} Bg1 {[%emt 00:00:02]
[%clk 00:00:19]} 36. h3 {[%emt 00:00:02] [%clk 00:00:11]} Bh2 {[%emt 00:00:01]
[%clk 00:00:20]} 37. Nh5 {[%emt 00:00:01] [%clk 00:00:12]} Bg1 {[%emt 00:00:03]
[%clk 00:00:19]} 38. Ng3 {[%emt 00:00:01] [%clk 00:00:13]} Ke7 {[%clk 00:00:20]}
39. Ne2 {[%emt 00:00:02] [%clk 00:00:14]} Bc5 {[%emt 00:00:01] [%clk 00:00:20]}
40. c4 {[%emt 00:00:03] [%clk 00:00:13]} Bd7 {[%emt 00:00:02] [%clk 00:00:20]}
41. Nc1 {[%emt 00:00:03] [%clk 00:00:12]} Bd6 {[%emt 00:00:04] [%clk 00:00:18]}
42. Nd3 {[%emt 00:00:02] [%clk 00:00:13]} f6 {[%emt 00:00:02] [%clk 00:00:17]}
43. c5 {[%emt 00:00:02] [%clk 00:00:13]} Bc7 {[%clk 00:00:18]} 44. Ke3 {[%emt
00:00:01] [%clk 00:00:14]} e5 {[%emt 00:00:01] [%clk 00:00:19]} 45. Bd5 {[%emt
00:00:02] [%clk 00:00:14]} e4 {[%emt 00:00:02] [%clk 00:00:19]} 46. Nc1 {[%emt
00:00:02] [%clk 00:00:14]} Be6 {[%emt 00:00:01] [%clk 00:00:20]} 47. Bxe6 {[%emt
00:00:03] [%clk 00:00:13]} Kxe6 {[%clk 00:00:22]} 48. Ne2 {[%emt 00:00:02] [%clk
00:00:14]} Kd5 {[%clk 00:00:23]} 49. Ng3 {[%clk 00:00:15]} Ke6 {[%emt 00:00:07]
[%clk 00:00:18]} 50. Ne2 {[%emt 00:00:02] [%clk 00:00:16]} h5 {[%emt 00:00:03]
[%clk 00:00:17]} 51. Kd4 {[%emt 00:00:01] [%clk 00:00:15]} h4 {[%emt 00:00:02]
[%clk 00:00:18]} 52. Kc4 {[%emt 00:00:01] [%clk 00:00:16]} Bd8 {[%emt 00:00:05]
[%clk 00:00:15]} 53. Nd4+ {[%clk 00:00:17]} Kd7 {[%emt 00:00:02] [%clk
00:00:15]} 54. Nxf5 {[%clk 00:00:18]} Kc6 {[%clk 00:00:16]} 55. Nxh4 {[%emt
00:00:03] [%clk 00:00:17]} Be7 {[%emt 00:00:02] [%clk 00:00:16]} 56. Kd4 {[%emt
00:00:04] [%clk 00:00:15]} 1-0

[Site "Europe Echecs"]

[Event "Championnat d'Europe de Blitz"]
[Date "2024.12.09"]
[White "Motylev, Alexander"]
[Black "Reprintsev, Alexander"]
[WhiteElo "2596"]
[BlackElo "2230"]
[Round "6.33"]
[Result "0-1"]
[TimeControl "180+2"]

1. e4 {[%emt 00:00:02] [%clk 00:03:01]} d5 {[%emt 00:00:02] [%clk 00:03:03]} 2.
exd5 {[%emt 00:00:01] [%clk 00:03:01]} Qxd5 {[%clk 00:03:04]} 3. Nc3 {[%emt
00:00:03] [%clk 00:03:01]} Qa5 {[%emt 00:00:01] [%clk 00:03:06]} 4. d4 {[%emt
00:00:03] [%clk 00:03:01]} Nf6 {[%emt 00:00:01] [%clk 00:03:07]} 5. Nf3 {[%clk
00:03:01]} Nc6 {[%clk 00:03:08]} 6. Bd2 {[%emt 00:00:07] [%clk 00:02:57]} a6
{[%emt 00:00:01] [%clk 00:03:09]} 7. h3 {[%emt 00:00:03] [%clk 00:02:55]} Bf5
{[%emt 00:00:40] [%clk 00:02:31]} 8. Bc4 {[%emt 00:00:02] [%clk 00:02:55]} Qb6
{[%emt 00:00:12] [%clk 00:02:21]} 9. Qe2 {[%emt 00:00:05] [%clk 00:02:52]} Nxd4
{[%emt 00:00:24] [%clk 00:01:59]} 10. Nxd4 {[%emt 00:00:03] [%clk 00:02:51]}
Qxd4 {[%clk 00:02:00]} 11. O-O-O {[%emt 00:00:03] [%clk 00:02:50]} e6 {[%emt
00:00:04] [%clk 00:01:58]} 12. g4 {[%emt 00:00:19] [%clk 00:02:33]} Bg6 {[%emt
00:00:02] [%clk 00:01:58]} 13. Be3 {[%emt 00:00:11] [%clk 00:02:23]} Qe5 {[%emt
00:00:07] [%clk 00:01:53]} 14. f4 {[%emt 00:00:04] [%clk 00:02:21]} Qa5 {[%emt
00:00:10] [%clk 00:01:45]} 15. f5 {[%emt 00:00:07] [%clk 00:02:15]} Bd6 {[%emt
00:00:05] [%clk 00:01:42]} 16. Kb1 {[%emt 00:00:14] [%clk 00:02:03]} O-O-O
{[%emt 00:00:03] [%clk 00:01:41]} 17. fxg6 {[%emt 00:00:03] [%clk 00:02:02]}
hxg6 {[%clk 00:01:42]} 18. g5 {[%emt 00:00:28] [%clk 00:01:36]} Nd7 {[%emt
00:00:04] [%clk 00:01:40]} 19. Ne4 {[%emt 00:00:13] [%clk 00:01:25]} Be5 {[%emt
00:00:07] [%clk 00:01:34]} 20. Bb3 {[%emt 00:00:11] [%clk 00:01:16]} Rh4 {[%emt
00:00:11] [%clk 00:01:26]} 21. Bf2 {[%emt 00:00:14] [%clk 00:01:04]} Rh5 {[%emt
00:00:11] [%clk 00:01:16]} 22. h4 {[%emt 00:00:10] [%clk 00:00:55]} Rhh8 {[%emt
00:00:03] [%clk 00:01:16]} 23. Rd3 {[%emt 00:00:16] [%clk 00:00:41]} Nb6 {[%emt
00:00:22] [%clk 00:00:56]} 24. Nc5 {[%emt 00:00:10] [%clk 00:00:33]} Bd6 {[%emt
00:00:04] [%clk 00:00:55]} 25. Ne4 {[%emt 00:00:10] [%clk 00:00:24]} Be5 {[%emt
00:00:01] [%clk 00:00:56]} 26. Rhd1 {[%clk 00:00:25]} Rxd3 {[%emt 00:00:02]
[%clk 00:00:57]} 27. Qxd3 {[%emt 00:00:01] [%clk 00:00:25]} Qb4 {[%emt 00:00:07]
[%clk 00:00:53]} 28. Bc5 {[%emt 00:00:08] [%clk 00:00:19]} Qa5 {[%emt 00:00:02]
[%clk 00:00:52]} 29. Bxb6 {[%emt 00:00:02] [%clk 00:00:19]} Qxb6 {[%emt
00:00:04] [%clk 00:00:50]} 30. Qd7+ {[%emt 00:00:02] [%clk 00:00:19]} Kb8 {[%emt
00:00:01] [%clk 00:00:51]} 31. Qxf7 {[%emt 00:00:01] [%clk 00:00:19]} Rxh4
{[%emt 00:00:06] [%clk 00:00:48]} 32. Nc3 {[%emt 00:00:12] [%clk 00:00:09]} Bxc3
{[%emt 00:00:06] [%clk 00:00:44]} 33. bxc3 {[%emt 00:00:02] [%clk 00:00:09]} e5
{[%emt 00:00:01] [%clk 00:00:44]} 34. Qxg7 {[%emt 00:00:02] [%clk 00:00:08]} e4
{[%emt 00:00:06] [%clk 00:00:41]} 35. Rd8+ {[%emt 00:00:02] [%clk 00:00:08]} Ka7
{[%clk 00:00:42]} 36. Qd4 {[%emt 00:00:02] [%clk 00:00:08]} c5 {[%emt 00:00:03]
[%clk 00:00:41]} 37. Qe5 {[%emt 00:00:03] [%clk 00:00:07]} Qxd8 {[%emt 00:00:05]
[%clk 00:00:38]} 38. Qxc5+ {[%clk 00:00:07]} Qb6 {[%emt 00:00:02] [%clk
00:00:39]} 39. Qe5 {[%emt 00:00:02] [%clk 00:00:07]} e3 {[%emt 00:00:02] [%clk
00:00:39]} 40. Kb2 {[%emt 00:00:02] [%clk 00:00:07]} a5 {[%emt 00:00:02] [%clk
00:00:39]} 41. Qf6 {[%emt 00:00:06] [%clk 00:00:03]} a4 {[%emt 00:00:04] [%clk
00:00:37]} 42. Qxb6+ {[%emt 00:00:03] [%clk 00:00:00]} Kxb6 0-1

[Site "Europe Echecs"]

[Event "Championnat d'Europe de Blitz"]
[Date "2024.12.09"]
[White "Beerdsen, Thomas"]
[Black "Danov, Lyubomir"]
[WhiteElo "2502"]
[BlackElo "2297"]
[Round "6.34"]
[Result "1-0"]
[TimeControl "180+2"]

1. e4 {[%emt 00:00:01] [%clk 00:03:02]} e6 {[%clk 00:03:03]} 2. d4 {[%emt
00:00:01] [%clk 00:03:03]} d5 {[%clk 00:03:05]} 3. Nc3 {[%emt 00:00:01] [%clk
00:03:04]} h6 {[%clk 00:03:06]} 4. Nf3 {[%emt 00:00:01] [%clk 00:03:05]} Nf6
{[%emt 00:00:02] [%clk 00:03:06]} 5. Bd3 {[%emt 00:00:01] [%clk 00:03:05]} Bb4
{[%emt 00:00:02] [%clk 00:03:06]} 6. exd5 {[%emt 00:00:03] [%clk 00:03:05]} exd5
{[%emt 00:00:02] [%clk 00:03:06]} 7. O-O {[%emt 00:00:02] [%clk 00:03:05]} O-O
{[%emt 00:00:02] [%clk 00:03:05]} 8. Ne5 {[%emt 00:00:02] [%clk 00:03:05]} Nbd7
{[%emt 00:00:07] [%clk 00:03:00]} 9. Qf3 {[%emt 00:00:04] [%clk 00:03:03]} c6
{[%emt 00:00:05] [%clk 00:02:57]} 10. Re1 {[%emt 00:00:21] [%clk 00:02:44]} Re8
{[%emt 00:00:11] [%clk 00:02:48]} 11. Bf4 {[%emt 00:00:11] [%clk 00:02:35]} Bf8
{[%emt 00:00:07] [%clk 00:02:43]} 12. h3 {[%emt 00:00:15] [%clk 00:02:22]} Nxe5
{[%emt 00:00:05] [%clk 00:02:40]} 13. Bxe5 {[%emt 00:00:03] [%clk 00:02:21]} Nd7
{[%emt 00:00:10] [%clk 00:02:31]} 14. Bg3 {[%emt 00:00:11] [%clk 00:02:12]}
Rxe1+ {[%emt 00:00:04] [%clk 00:02:30]} 15. Rxe1 {[%clk 00:02:13]} Nf6 {[%emt
00:00:02] [%clk 00:02:30]} 16. Bh4 {[%emt 00:00:04] [%clk 00:02:11]} Be7 {[%emt
00:00:26] [%clk 00:02:07]} 17. Qe3 {[%emt 00:00:11] [%clk 00:02:04]} Be6 {[%clk
00:02:05]} 18. Ne2 {[%emt 00:00:01] [%clk 00:02:05]} Nd7 {[%emt 00:00:08] [%clk
00:01:59]} 19. Bxe7 {[%emt 00:00:14] [%clk 00:01:53]} Qxe7 {[%emt 00:00:01]
[%clk 00:02:00]} 20. Nf4 {[%emt 00:00:02] [%clk 00:01:54]} Nf8 {[%emt 00:00:07]
[%clk 00:01:55]} 21. Qe5 {[%emt 00:00:14] [%clk 00:01:42]} Re8 {[%emt 00:00:14]
[%clk 00:01:42]} 22. c3 {[%clk 00:01:43]} Qd8 {[%emt 00:00:06] [%clk 00:01:38]}
23. Nh5 {[%emt 00:00:04] [%clk 00:01:41]} Qg5 {[%emt 00:00:04] [%clk 00:01:37]}
24. f4 {[%emt 00:00:06] [%clk 00:01:37]} Qxe5 {[%emt 00:00:04] [%clk 00:01:35]}
25. dxe5 {[%emt 00:00:05] [%clk 00:01:34]} Bc8 {[%emt 00:00:14] [%clk 00:01:23]}
26. Kf2 {[%emt 00:00:06] [%clk 00:01:30]} Ne6 {[%emt 00:00:07] [%clk 00:01:17]}
27. b4 {[%emt 00:00:03] [%clk 00:01:30]} Bd7 {[%emt 00:00:08] [%clk 00:01:11]}
28. f5 {[%emt 00:00:04] [%clk 00:01:28]} Nf8 {[%emt 00:00:03] [%clk 00:01:09]}
29. g4 {[%emt 00:00:02] [%clk 00:01:29]} c5 {[%emt 00:00:03] [%clk 00:01:08]}
30. Nf4 {[%emt 00:00:13] [%clk 00:01:17]} cxb4 {[%emt 00:00:05] [%clk 00:01:05]}
31. cxb4 {[%emt 00:00:02] [%clk 00:01:17]} d4 {[%emt 00:00:02] [%clk 00:01:05]}
32. Bc4 {[%emt 00:00:06] [%clk 00:01:14]} Rc8 {[%emt 00:00:12] [%clk 00:00:54]}
33. Bb3 {[%emt 00:00:01] [%clk 00:01:15]} Bc6 {[%emt 00:00:02] [%clk 00:00:55]}
34. e6 {[%emt 00:00:03] [%clk 00:01:14]} fxe6 {[%emt 00:00:02] [%clk 00:00:55]}
35. fxe6 {[%emt 00:00:03] [%clk 00:01:12]} Kh8 {[%emt 00:00:06] [%clk 00:00:51]}
36. e7 {[%emt 00:00:02] [%clk 00:01:13]} g5 {[%emt 00:00:04] [%clk 00:00:49]}
37. Nh5 {[%emt 00:00:23] [%clk 00:00:52]} Ng6 {[%emt 00:00:01] [%clk 00:00:50]}
38. Nf6 {[%emt 00:00:06] [%clk 00:00:48]} Be8 {[%emt 00:00:01] [%clk 00:00:51]}
39. Nxe8 {[%emt 00:00:12] [%clk 00:00:38]} Rxe8 {[%clk 00:00:53]} 40. Bf7 {[%emt
00:00:02] [%clk 00:00:39]} 1-0

[Site "Europe Echecs"]